[Event "Early-Titled-Tuesday-Blitz-March-26-2024"]
[Site "Chess.com"]
[Date "2024.03.26"]
[Round "3"]
[White "ural58"]
[Black "GlavkonVVS"]
[Result "0-1"]
[WhiteElo "2454"]
[BlackElo "2645"]
[TimeControl "180+1"]
[EndTime "8:23:25 PDT"]
[Termination "GlavkonVVS won by resignation"]

1. e4 {[%clk 0:02:55.3]} 1... Nf6 {[%clk 0:03:00]} 2. e5 {[%clk 0:02:53.8]} 2...
Nd5 {[%clk 0:03:00.1]} 3. d4 {[%clk 0:02:52.3]} 3... d6 {[%clk 0:02:59.9]} 4. c4
{[%clk 0:02:51.2]} 4... Nb6 {[%clk 0:02:59.7]} 5. f4 {[%clk 0:02:51.3]} 5...
dxe5 {[%clk 0:02:59.5]} 6. fxe5 {[%clk 0:02:51.3]} 6... c5 {[%clk 0:03:00.1]} 7.
d5 {[%clk 0:02:48.9]} 7... g6 {[%clk 0:03:00.2]} 8. Be3 {[%clk 0:02:43.8]} 8...
Bg7 {[%clk 0:03:00.1]} 9. Nf3 {[%clk 0:02:38.2]} 9... Bg4 {[%clk 0:02:59.8]} 10.
Be2 {[%clk 0:02:28.5]} 10... Bxf3 {[%clk 0:02:53.9]} 11. gxf3 {[%clk 0:02:21.3]}
11... Bxe5 {[%clk 0:02:52.7]} 12. Bxc5 {[%clk 0:02:16.5]} 12... O-O {[%clk
0:02:49]} 13. Nc3 {[%clk 0:02:14.5]} 13... N8d7 {[%clk 0:02:36.6]} 14. Bd4
{[%clk 0:02:13.9]} 14... Rc8 {[%clk 0:02:35.8]} 15. b3 {[%clk 0:02:13]} 15... e6
{[%clk 0:02:24.3]} 16. dxe6 {[%clk 0:02:08.6]} 16... Qh4+ {[%clk 0:02:22.1]} 17.
Kf1 {[%clk 0:02:03.8]} 17... Bxd4 {[%clk 0:02:19.6]} 0-1

[Event "Early-Titled-Tuesday-Blitz-March-26-2024"]
[Site "Chess.com"]
[Date "2024.03.26"]
[Round "3"]
[White "Aradhya2000"]
[Black "XDPS"]
[Result "1-0"]
[WhiteElo "2753"]
[BlackElo "2910"]
[TimeControl "180+1"]
[EndTime "8:23:46 PDT"]
[Termination "Aradhya2000 won by resignation"]

1. d4 {[%clk 0:03:00.9]} 1... d5 {[%clk 0:03:00.5]} 2. c4 {[%clk 0:03:01.2]}
2... c6 {[%clk 0:03:01.2]} 3. Nf3 {[%clk 0:03:00.9]} 3... Nf6 {[%clk 0:03:01.9]}
4. Nc3 {[%clk 0:03:01.3]} 4... e6 {[%clk 0:03:01.8]} 5. e3 {[%clk 0:03:00.5]}
5... Nbd7 {[%clk 0:03:02.2]} 6. Qc2 {[%clk 0:02:59.7]} 6... Be7 {[%clk
0:03:02.7]} 7. b3 {[%clk 0:02:57.4]} 7... O-O {[%clk 0:03:03.1]} 8. Bb2 {[%clk
0:02:57.7]} 8... b6 {[%clk 0:03:03.8]} 9. Bd3 {[%clk 0:02:57.9]} 9... Bb7 {[%clk
0:03:04.6]} 10. O-O {[%clk 0:02:58.5]} 10... h6 {[%clk 0:03:04.4]} 11. Rad1
{[%clk 0:02:57.6]} 11... Qc7 {[%clk 0:02:58.3]} 12. Ne5 {[%clk 0:02:57]} 12...
dxc4 {[%clk 0:02:45.9]} 13. Bxc4 {[%clk 0:02:41.9]} 13... Nxe5 {[%clk
0:02:29.1]} 14. dxe5 {[%clk 0:02:42.8]} 14... Ng4 {[%clk 0:02:11.6]} 15. Ne4
{[%clk 0:02:40.1]} 15... Nxe5 {[%clk 0:02:10.2]} 16. Bxe5 {[%clk 0:02:38.4]}
16... Qxe5 {[%clk 0:02:09.5]} 17. Rd7 {[%clk 0:02:39.1]} 17... Bc8 {[%clk
0:01:44.4]} 18. Rxe7 {[%clk 0:02:35.4]} 18... f5 {[%clk 0:01:44.8]} 19. Qc3
{[%clk 0:02:29.8]} 1-0

[Event "Early-Titled-Tuesday-Blitz-March-26-2024"]
[Site "Chess.com"]
[Date "2024.03.26"]
[Round "3"]
[White "Suleyman_Chess06"]
[Black "Art10ECHR"]
[Result "1-0"]
[WhiteElo "2688"]
[BlackElo "2471"]
[TimeControl "180+1"]
[EndTime "8:23:54 PDT"]
[Termination "Suleyman_Chess06 won by resignation"]

1. Nf3 {[%clk 0:03:00.9]} 1... d5 {[%clk 0:02:51]} 2. g3 {[%clk 0:03:00.3]} 2...
Nf6 {[%clk 0:02:50.8]} 3. Bg2 {[%clk 0:03:00.9]} 3... c5 {[%clk 0:02:49.6]} 4.
O-O {[%clk 0:02:59.8]} 4... Nc6 {[%clk 0:02:47.7]} 5. d4 {[%clk 0:02:59.6]} 5...
e6 {[%clk 0:02:48]} 6. c4 {[%clk 0:02:59]} 6... dxc4 {[%clk 0:02:48]} 7. dxc5
{[%clk 0:02:56.7]} 7... Qxd1 {[%clk 0:02:46.7]} 8. Rxd1 {[%clk 0:02:56.4]} 8...
Bxc5 {[%clk 0:02:47.4]} 9. Nbd2 {[%clk 0:02:57]} 9... c3 {[%clk 0:02:47.9]} 10.
Nb3 {[%clk 0:02:55.4]} 10... Be7 {[%clk 0:02:42.4]} 11. bxc3 {[%clk 0:02:55.3]}
11... O-O {[%clk 0:02:42.3]} 12. Bf4 {[%clk 0:02:55.2]} 12... Bd7 {[%clk
0:02:36.3]} 13. Ne5 {[%clk 0:02:52.5]} 13... Nxe5 {[%clk 0:02:30.2]} 14. Bxe5
{[%clk 0:02:53.4]} 14... Bc6 {[%clk 0:02:26.7]} 15. Bxc6 {[%clk 0:02:52.9]}
15... bxc6 {[%clk 0:02:27.6]} 16. c4 {[%clk 0:02:53.3]} 16... a5 {[%clk
0:02:20.1]} 17. Nd4 {[%clk 0:02:51.4]} 17... Rfc8 {[%clk 0:02:14.9]} 18. Rab1
{[%clk 0:02:51.4]} 18... Bc5 {[%clk 0:02:12.8]} 19. Rb7 {[%clk 0:02:48]} 19...
Ng4 {[%clk 0:02:07.8]} 20. Bxg7 {[%clk 0:02:29.8]} 20... Nxf2 {[%clk 0:01:46.1]}
21. Kxf2 {[%clk 0:02:23.3]} 21... Kxg7 {[%clk 0:01:46.1]} 22. Kg2 {[%clk
0:02:23.9]} 22... Rd8 {[%clk 0:01:44.7]} 23. Nxe6+ {[%clk 0:02:22.9]} 1-0

[Event "Early-Titled-Tuesday-Blitz-March-26-2024"]
[Site "Chess.com"]
[Date "2024.03.26"]
[Round "3"]
[White "Chxss_Khxsbu"]
[Black "Predator0608"]
[Result "0-1"]
[WhiteElo "1757"]
[BlackElo "2538"]
[TimeControl "180+1"]
[EndTime "8:24:19 PDT"]
[Termination "Predator0608 won by resignation"]

1. e4 {[%clk 0:03:00.9]} 1... b6 {[%clk 0:03:00.9]} 2. d4 {[%clk 0:03:00.3]}
2... Bb7 {[%clk 0:03:01.4]} 3. Nc3 {[%clk 0:03:00.1]} 3... e6 {[%clk 0:03:01.4]}
4. Nf3 {[%clk 0:02:59.6]} 4... Ne7 {[%clk 0:03:01.9]} 5. Bc4 {[%clk 0:02:59.5]}
5... g6 {[%clk 0:03:02]} 6. O-O {[%clk 0:02:59.4]} 6... Bg7 {[%clk 0:03:02.4]}
7. d5 {[%clk 0:02:59.6]} 7... O-O {[%clk 0:03:01.9]} 8. d6 {[%clk 0:02:57.7]}
8... cxd6 {[%clk 0:03:02.8]} 9. Qxd6 {[%clk 0:02:57.3]} 9... Nc8 {[%clk
0:02:59.4]} 10. Qd3 {[%clk 0:02:56.2]} 10... a6 {[%clk 0:02:49.1]} 11. Bf4
{[%clk 0:02:55.4]} 11... b5 {[%clk 0:02:49]} 12. Bb3 {[%clk 0:02:54.6]} 12...
Qb6 {[%clk 0:02:36.7]} 13. Rad1 {[%clk 0:02:47.6]} 13... b4 {[%clk 0:02:21.3]}
14. Na4 {[%clk 0:02:30.4]} 14... Qa5 {[%clk 0:02:21.6]} 15. Rfe1 {[%clk
0:02:20.8]} 15... Bc6 {[%clk 0:02:16.9]} 16. Bd6 {[%clk 0:02:00.3]} 16... Nxd6
{[%clk 0:02:13.2]} 17. Qxd6 {[%clk 0:02:01.2]} 17... Bxa4 {[%clk 0:02:13.3]} 18.
Bxa4 {[%clk 0:02:01]} 18... Qxa4 {[%clk 0:02:14.2]} 19. e5 {[%clk 0:01:57.3]}
19... Qc6 {[%clk 0:02:12.7]} 20. Nd4 {[%clk 0:01:55.4]} 20... Qxd6 {[%clk
0:02:12.2]} 21. exd6 {[%clk 0:01:55.9]} 21... Nc6 {[%clk 0:02:10.1]} 22. Nb3
{[%clk 0:01:54.4]} 22... Bxb2 {[%clk 0:02:08.4]} 23. Nc5 {[%clk 0:01:54.6]}
23... Bc3 {[%clk 0:02:06.8]} 24. Nxd7 {[%clk 0:01:51.7]} 24... Bxe1 {[%clk
0:02:05.4]} 25. Nxf8 {[%clk 0:01:51.4]} 25... Kxf8 {[%clk 0:02:06.3]} 26. Rxe1
{[%clk 0:01:51.4]} 26... Ke8 {[%clk 0:02:06.8]} 27. Rd1 {[%clk 0:01:51.6]} 27...
Kd7 {[%clk 0:02:07.7]} 0-1

[Event "Early-Titled-Tuesday-Blitz-March-26-2024"]
[Site "Chess.com"]
[Date "2024.03.26"]
[Round "3"]
[White "The_Straightforward_Rook"]
[Black "Better_Chess_Faster"]
[Result "1-0"]
[WhiteElo "2416"]
[BlackElo "2167"]
[TimeControl "180+1"]
[EndTime "8:24:36 PDT"]
[Termination "The_Straightforward_Rook won by resignation"]

1. e4 {[%clk 0:02:55.6]} 1... d6 {[%clk 0:02:59.6]} 2. Nf3 {[%clk 0:02:46.9]}
2... Nf6 {[%clk 0:02:58.4]} 3. d3 {[%clk 0:02:46.1]} 3... g6 {[%clk 0:02:53.4]}
4. g3 {[%clk 0:02:46.2]} 4... Bg7 {[%clk 0:02:53.4]} 5. Bg2 {[%clk 0:02:46.9]}
5... e5 {[%clk 0:02:53.6]} 6. O-O {[%clk 0:02:47]} 6... O-O {[%clk 0:02:54.2]}
7. Nbd2 {[%clk 0:02:42.8]} 7... c6 {[%clk 0:02:53.6]} 8. a4 {[%clk 0:02:41.8]}
8... a5 {[%clk 0:02:53.4]} 9. Nc4 {[%clk 0:02:35.4]} 9... Na6 {[%clk 0:02:52.3]}
10. b3 {[%clk 0:02:32.2]} 10... Be6 {[%clk 0:02:49.6]} 11. Ba3 {[%clk
0:02:30.7]} 11... Re8 {[%clk 0:02:48.5]} 12. Nxd6 {[%clk 0:02:29.5]} 12... Re7
{[%clk 0:02:42.5]} 13. Nc4 {[%clk 0:02:27.7]} 13... Nb4 {[%clk 0:02:38.9]} 14.
c3 {[%clk 0:02:16.8]} 14... Bxc4 {[%clk 0:02:34]} 15. bxc4 {[%clk 0:02:10.6]}
15... Rd7 {[%clk 0:02:25.1]} 16. cxb4 {[%clk 0:02:08.2]} 16... Rxd3 {[%clk
0:02:24.1]} 17. Qc2 {[%clk 0:02:05.6]} 17... Nxe4 {[%clk 0:02:21]} 18. Ne1
{[%clk 0:01:55.1]} 18... Rxa3 {[%clk 0:01:45.5]} 19. Rxa3 {[%clk 0:01:53.1]}
19... Nd2 {[%clk 0:01:45.5]} 20. Rd3 {[%clk 0:01:47.4]} 1-0

[Event "Early-Titled-Tuesday-Blitz-March-26-2024"]
[Site "Chess.com"]
[Date "2024.03.26"]
[Round "3"]
[White "Kotlyar_K"]
[Black "Alexander_Donchenko"]
[Result "1-0"]
[WhiteElo "2603"]
[BlackElo "2883"]
[TimeControl "180+1"]
[EndTime "8:24:43 PDT"]
[Termination "Kotlyar_K won by resignation"]

1. e4 {[%clk 0:03:00.9]} 1... c6 {[%clk 0:02:59.1]} 2. Nf3 {[%clk 0:02:53.3]}
2... d5 {[%clk 0:03:00]} 3. Nc3 {[%clk 0:02:53.9]} 3... dxe4 {[%clk 0:02:56.4]}
4. Nxe4 {[%clk 0:02:53.9]} 4... Nf6 {[%clk 0:02:57.3]} 5. Qe2 {[%clk 0:02:54.1]}
5... Nxe4 {[%clk 0:02:56.7]} 6. Qxe4 {[%clk 0:02:55]} 6... Nd7 {[%clk
0:02:57.2]} 7. Bc4 {[%clk 0:02:55.6]} 7... Nf6 {[%clk 0:02:57.5]} 8. Ne5 {[%clk
0:02:56.2]} 8... e6 {[%clk 0:02:58.1]} 9. Qe2 {[%clk 0:02:56.9]} 9... b5 {[%clk
0:02:58.7]} 10. Bb3 {[%clk 0:02:56.9]} 10... Qc7 {[%clk 0:02:58.2]} 11. d4
{[%clk 0:02:56.1]} 11... Bd6 {[%clk 0:02:57.9]} 12. O-O {[%clk 0:02:55.9]} 12...
O-O {[%clk 0:02:57.8]} 13. Bf4 {[%clk 0:02:56]} 13... Bb7 {[%clk 0:02:57.3]} 14.
Rfd1 {[%clk 0:02:52.6]} 14... a6 {[%clk 0:02:56.1]} 15. Rac1 {[%clk 0:02:49.7]}
15... c5 {[%clk 0:02:48.1]} 16. c4 {[%clk 0:02:43.5]} 16... b4 {[%clk
0:02:39.6]} 17. Bg3 {[%clk 0:02:34.4]} 17... Rad8 {[%clk 0:02:37.1]} 18. d5
{[%clk 0:02:08.5]} 18... Rfe8 {[%clk 0:02:29]} 19. f4 {[%clk 0:02:07.7]} 19...
exd5 {[%clk 0:02:16.2]} 20. cxd5 {[%clk 0:02:07.5]} 20... Nd7 {[%clk 0:02:16.5]}
21. Re1 {[%clk 0:01:55.5]} 21... f6 {[%clk 0:02:10.5]} 22. Qh5 {[%clk 0:01:42]}
22... Nb6 {[%clk 0:01:51]} 23. Nc4 {[%clk 0:01:37.7]} 23... Nxc4 {[%clk
0:01:44.7]} 24. Rxe8+ {[%clk 0:01:37.2]} 1-0

[Event "Early-Titled-Tuesday-Blitz-March-26-2024"]
[Site "Chess.com"]
[Date "2024.03.26"]
[Round "3"]
[White "crescentmoon2411"]
[Black "DCacheiro"]
[Result "1-0"]
[WhiteElo "2886"]
[BlackElo "2521"]
[TimeControl "180+1"]
[EndTime "8:24:51 PDT"]
[Termination "crescentmoon2411 won by checkmate"]

1. d4 {[%clk 0:03:00.9]} 1... Nf6 {[%clk 0:03:00.3]} 2. c4 {[%clk 0:03:01.4]}
2... g6 {[%clk 0:03:00.8]} 3. Nc3 {[%clk 0:03:02.1]} 3... Bg7 {[%clk 0:03:01.3]}
4. e4 {[%clk 0:03:02.1]} 4... d6 {[%clk 0:03:01.8]} 5. h4 {[%clk 0:03:02.7]}
5... c5 {[%clk 0:02:57.3]} 6. dxc5 {[%clk 0:03:01.6]} 6... Qa5 {[%clk
0:02:50.1]} 7. Bd3 {[%clk 0:03:01.6]} 7... Qxc5 {[%clk 0:02:47.7]} 8. Be3 {[%clk
0:03:01.4]} 8... Qc7 {[%clk 0:02:46.8]} 9. f3 {[%clk 0:03:00.5]} 9... Nc6 {[%clk
0:02:45.8]} 10. Nge2 {[%clk 0:02:59.7]} 10... O-O {[%clk 0:02:44.5]} 11. Rc1
{[%clk 0:02:57]} 11... Ne5 {[%clk 0:02:43]} 12. Nf4 {[%clk 0:02:50.8]} 12...
Nxd3+ {[%clk 0:02:39.8]} 13. Qxd3 {[%clk 0:02:50.1]} 13... Bd7 {[%clk
0:02:33.1]} 14. h5 {[%clk 0:02:49.7]} 14... Rac8 {[%clk 0:02:29.6]} 15. hxg6
{[%clk 0:02:47.7]} 15... hxg6 {[%clk 0:02:28.7]} 16. Ncd5 {[%clk 0:02:46.1]}
16... Nxd5 {[%clk 0:02:26.8]} 17. Nxd5 {[%clk 0:02:47]} 17... Qd8 {[%clk
0:02:25.9]} 18. Bh6 {[%clk 0:02:44.2]} 18... Bxh6 {[%clk 0:02:16.2]} 19. Rxh6
{[%clk 0:02:45.1]} 19... e6 {[%clk 0:02:09.6]} 20. Qd4 {[%clk 0:02:41.7]} 20...
e5 {[%clk 0:01:55.4]} 21. Qxa7 {[%clk 0:02:37.3]} 21... Ra8 {[%clk 0:01:44.2]}
22. Kf2 {[%clk 0:02:30.2]} 22... Rxa7 {[%clk 0:01:42.3]} 23. Rch1 {[%clk
0:02:30.2]} 23... f6 {[%clk 0:01:19.5]} 24. Rh8+ {[%clk 0:02:29.2]} 24... Kf7
{[%clk 0:01:19]} 25. R1h7+ {[%clk 0:02:30]} 25... Ke6 {[%clk 0:01:14.2]} 26.
Rxf8 {[%clk 0:02:30]} 26... Qxf8 {[%clk 0:00:57.5]} 27. Nc7# {[%clk 0:02:23.7]}
1-0

[Event "Early-Titled-Tuesday-Blitz-March-26-2024"]
[Site "Chess.com"]
[Date "2024.03.26"]
[Round "3"]
[White "Slovineanu"]
[Black "klimkoj"]
[Result "0-1"]
[WhiteElo "2513"]
[BlackElo "2820"]
[TimeControl "180+1"]
[EndTime "8:24:57 PDT"]
[Termination "klimkoj won by resignation"]

1. d4 {[%clk 0:03:00.9]} 1... Nf6 {[%clk 0:02:59.5]} 2. Nf3 {[%clk 0:02:59.7]}
2... g6 {[%clk 0:03:00.4]} 3. Nbd2 {[%clk 0:02:57.9]} 3... d5 {[%clk 0:03:00.1]}
4. e3 {[%clk 0:02:55.2]} 4... Bg7 {[%clk 0:02:59.9]} 5. b4 {[%clk 0:02:55.3]}
5... O-O {[%clk 0:02:58.9]} 6. c4 {[%clk 0:02:54.7]} 6... a5 {[%clk 0:02:58.7]}
7. b5 {[%clk 0:02:54.6]} 7... c5 {[%clk 0:02:59.3]} 8. dxc5 {[%clk 0:02:54.6]}
8... Ne4 {[%clk 0:02:53.6]} 9. Ba3 {[%clk 0:02:54.2]} 9... Nxd2 {[%clk
0:02:39.9]} 10. Nxd2 {[%clk 0:02:50.3]} 10... d4 {[%clk 0:02:16]} 11. Rc1 {[%clk
0:02:42.3]} 11... dxe3 {[%clk 0:02:15.1]} 12. fxe3 {[%clk 0:02:42.1]} 12... Nd7
{[%clk 0:02:13.7]} 13. Nf3 {[%clk 0:02:37.3]} 13... Qc7 {[%clk 0:02:09.1]} 14.
b6 {[%clk 0:02:36.8]} 14... Qc6 {[%clk 0:02:09]} 15. Nd4 {[%clk 0:02:33.2]}
15... Qe4 {[%clk 0:02:05.3]} 16. Qd3 {[%clk 0:02:31.1]} 16... Qe5 {[%clk
0:02:04.9]} 17. Nf3 {[%clk 0:02:14.4]} 17... Qh5 {[%clk 0:02:04.6]} 18. Qd5
{[%clk 0:02:09.5]} 18... Qh6 {[%clk 0:01:36.3]} 19. Qg5 {[%clk 0:02:08.9]} 19...
Qxg5 {[%clk 0:01:36.6]} 20. Nxg5 {[%clk 0:02:09.1]} 20... Ne5 {[%clk 0:01:37.5]}
21. c6 {[%clk 0:01:53.1]} 21... Nxc6 {[%clk 0:01:36.2]} 22. Be2 {[%clk
0:01:50.3]} 22... Bh6 {[%clk 0:01:33.4]} 23. Nf3 {[%clk 0:01:36.9]} 23... Bxe3
{[%clk 0:01:32.5]} 24. Rd1 {[%clk 0:01:37.3]} 24... Bxb6 {[%clk 0:01:32.4]} 0-1

[Event "Early-Titled-Tuesday-Blitz-March-26-2024"]
[Site "Chess.com"]
[Date "2024.03.26"]
[Round "3"]
[White "Gennady_Kozlov"]
[Black "Manukyan_Artak"]
[Result "1-0"]
[WhiteElo "2666"]
[BlackElo "2463"]
[TimeControl "180+1"]
[EndTime "8:24:59 PDT"]
[Termination "Gennady_Kozlov won on time"]

1. b3 {[%clk 0:02:59.4]} 1... a5 {[%clk 0:02:59.1]} 2. a4 {[%clk 0:02:58.4]}
2... Nf6 {[%clk 0:02:57.7]} 3. Bb2 {[%clk 0:02:58.9]} 3... d5 {[%clk 0:02:58.6]}
4. e3 {[%clk 0:02:59.1]} 4... Bg4 {[%clk 0:02:55.8]} 5. Be2 {[%clk 0:02:58.7]}
5... Bxe2 {[%clk 0:02:55.9]} 6. Qxe2 {[%clk 0:02:59.6]} 6... e6 {[%clk
0:02:56.7]} 7. f4 {[%clk 0:02:59.5]} 7... Nbd7 {[%clk 0:02:56.1]} 8. Nf3 {[%clk
0:02:59.5]} 8... Be7 {[%clk 0:02:33.6]} 9. O-O {[%clk 0:02:57.5]} 9... O-O
{[%clk 0:01:54.3]} 10. d3 {[%clk 0:02:56.7]} 10... c5 {[%clk 0:00:58]} 11. Na3
{[%clk 0:02:55]} 11... b6 {[%clk 0:00:35.9]} 12. e4 {[%clk 0:02:47.1]} 12... Re8
{[%clk 0:00:33.1]} 13. Nb5 {[%clk 0:02:43.9]} 13... dxe4 {[%clk 0:00:30.3]} 14.
dxe4 {[%clk 0:02:42.5]} 14... Nf8 {[%clk 0:00:30.9]} 15. Rad1 {[%clk 0:02:39.8]}
1-0

[Event "Early-Titled-Tuesday-Blitz-March-26-2024"]
[Site "Chess.com"]
[Date "2024.03.26"]
[Round "3"]
[White "Harry_Rakkel"]
[Black "AlmasRakhmatullaev"]
[Result "0-1"]
[WhiteElo "2727"]
[BlackElo "2915"]
[TimeControl "180+1"]
[EndTime "8:25:13 PDT"]
[Termination "AlmasRakhmatullaev won by resignation"]

1. e4 {[%clk 0:03:00.9]} 1... e5 {[%clk 0:02:57.5]} 2. Nf3 {[%clk 0:03:00.5]}
2... Nc6 {[%clk 0:02:52.5]} 3. Bc4 {[%clk 0:02:59.6]} 3... Nf6 {[%clk 0:02:52]}
4. Ng5 {[%clk 0:02:58.8]} 4... d5 {[%clk 0:02:52.5]} 5. exd5 {[%clk 0:02:59]}
5... b5 {[%clk 0:02:53.2]} 6. Bf1 {[%clk 0:02:57.6]} 6... Nd4 {[%clk 0:02:52.5]}
7. c3 {[%clk 0:02:56.1]} 7... Nf5 {[%clk 0:02:33.9]} 8. Bxb5+ {[%clk 0:02:52.2]}
8... Bd7 {[%clk 0:02:34.4]} 9. Qa4 {[%clk 0:02:49.3]} 9... Bc5 {[%clk
0:02:25.8]} 10. Bxd7+ {[%clk 0:02:32.9]} 10... Nxd7 {[%clk 0:02:26.7]} 11. Ne4
{[%clk 0:02:31]} 11... O-O {[%clk 0:02:25.7]} 12. Nxc5 {[%clk 0:02:19.8]} 12...
Nxc5 {[%clk 0:02:26.6]} 13. Qc4 {[%clk 0:02:19.4]} 13... Qe7 {[%clk 0:02:20.3]}
14. b4 {[%clk 0:02:08.2]} 14... Nd7 {[%clk 0:02:20.1]} 15. O-O {[%clk
0:02:01.5]} 15... e4 {[%clk 0:02:08.2]} 16. Re1 {[%clk 0:01:45.2]} 16... Rfe8
{[%clk 0:02:06.5]} 17. d3 {[%clk 0:01:36.3]} 17... Ne5 {[%clk 0:01:44.8]} 18.
Qxe4 {[%clk 0:01:22.8]} 18... Nf3+ {[%clk 0:01:42.2]} 19. gxf3 {[%clk
0:01:21.8]} 19... Qd7 {[%clk 0:01:42.2]} 20. Bf4 {[%clk 0:01:07.1]} 20... Rxe4
{[%clk 0:01:41.4]} 21. dxe4 {[%clk 0:01:05.8]} 21... Nh4 {[%clk 0:01:40.8]} 22.
Nd2 {[%clk 0:01:05.9]} 22... Qh3 {[%clk 0:01:40.2]} 0-1

[Event "Early-Titled-Tuesday-Blitz-March-26-2024"]
[Site "Chess.com"]
[Date "2024.03.26"]
[Round "3"]
[White "HanSchut"]
[Black "Cheer_Down"]
[Result "0-1"]
[WhiteElo "2261"]
[BlackElo "2477"]
[TimeControl "180+1"]
[EndTime "8:25:17 PDT"]
[Termination "Cheer_Down won by resignation"]

1. e4 {[%clk 0:03:00.9]} 1... e5 {[%clk 0:03:00.1]} 2. Nf3 {[%clk 0:03:00.2]}
2... Nc6 {[%clk 0:03:00.1]} 3. Bc4 {[%clk 0:03:00.9]} 3... Nf6 {[%clk
0:02:59.8]} 4. d4 {[%clk 0:03:00.2]} 4... exd4 {[%clk 0:02:48.3]} 5. e5 {[%clk
0:03:01.1]} 5... Ne4 {[%clk 0:02:45.5]} 6. Qe2 {[%clk 0:03:00]} 6... Nc5 {[%clk
0:02:43.8]} 7. c3 {[%clk 0:02:59.1]} 7... d3 {[%clk 0:02:39.9]} 8. Qe3 {[%clk
0:02:58.5]} 8... Be7 {[%clk 0:02:35]} 9. b4 {[%clk 0:02:55.4]} 9... Ne6 {[%clk
0:02:33.4]} 10. O-O {[%clk 0:02:55.9]} 10... a6 {[%clk 0:02:14.3]} 11. Rd1
{[%clk 0:02:54.9]} 11... d5 {[%clk 0:02:08.5]} 12. Rxd3 {[%clk 0:02:23.1]} 12...
dxc4 {[%clk 0:02:08.3]} 13. Rxd8+ {[%clk 0:02:22.4]} 13... Ncxd8 {[%clk
0:02:05.8]} 14. Nbd2 {[%clk 0:02:14.8]} 14... b5 {[%clk 0:02:03.2]} 15. a4
{[%clk 0:02:12.3]} 15... Bb7 {[%clk 0:02:03.2]} 16. axb5 {[%clk 0:02:12]} 16...
axb5 {[%clk 0:02:04.1]} 17. Rxa8 {[%clk 0:02:11.8]} 17... Bxa8 {[%clk
0:02:04.9]} 18. Nd4 {[%clk 0:01:57.6]} 18... Nxd4 {[%clk 0:02:02.1]} 19. Qxd4
{[%clk 0:01:57.9]} 19... O-O {[%clk 0:01:58.5]} 20. f4 {[%clk 0:01:58]} 20... f5
{[%clk 0:01:54.4]} 21. Kf2 {[%clk 0:01:46.7]} 21... Bc6 {[%clk 0:01:53.4]} 22.
Nf3 {[%clk 0:01:45]} 22... Ne6 {[%clk 0:01:53.4]} 23. Qa7 {[%clk 0:01:33.4]}
23... Ra8 {[%clk 0:01:52.2]} 24. Qe3 {[%clk 0:01:23.6]} 24... Ra2+ {[%clk
0:01:51.6]} 25. Kg3 {[%clk 0:01:13.7]} 25... g5 {[%clk 0:01:47.8]} 26. fxg5
{[%clk 0:01:07.8]} 26... f4+ {[%clk 0:01:47.5]} 27. Qxf4 {[%clk 0:01:03.6]}
27... Nxf4 {[%clk 0:01:47.5]} 28. Bxf4 {[%clk 0:01:04.5]} 0-1

[Event "Early-Titled-Tuesday-Blitz-March-26-2024"]
[Site "Chess.com"]
[Date "2024.03.26"]
[Round "3"]
[White "Ginger_GM"]
[Black "Donskov_AN"]
[Result "1-0"]
[WhiteElo "2579"]
[BlackElo "2351"]
[TimeControl "180+1"]
[EndTime "8:25:23 PDT"]
[Termination "Ginger_GM won by resignation"]

1. d4 {[%clk 0:03:00.9]} 1... d5 {[%clk 0:02:58.7]} 2. Nc3 {[%clk 0:02:59.5]}
2... Nf6 {[%clk 0:02:58.4]} 3. Bf4 {[%clk 0:02:59]} 3... a6 {[%clk 0:02:58.6]}
4. e3 {[%clk 0:02:58.3]} 4... e6 {[%clk 0:02:59]} 5. Nf3 {[%clk 0:02:57.4]} 5...
c5 {[%clk 0:02:59.2]} 6. dxc5 {[%clk 0:02:56.9]} 6... Bxc5 {[%clk 0:02:59.3]} 7.
Bd3 {[%clk 0:02:57.2]} 7... O-O {[%clk 0:02:59.5]} 8. O-O {[%clk 0:02:56.9]}
8... Nc6 {[%clk 0:03:00]} 9. e4 {[%clk 0:02:57.2]} 9... dxe4 {[%clk 0:03:00.2]}
10. Nxe4 {[%clk 0:02:56.8]} 10... Nxe4 {[%clk 0:03:00.5]} 11. Bxe4 {[%clk
0:02:56.9]} 11... Qxd1 {[%clk 0:03:00.3]} 12. Rfxd1 {[%clk 0:02:56.5]} 12... h6
{[%clk 0:02:56.7]} 13. Bxc6 {[%clk 0:02:54.2]} 13... bxc6 {[%clk 0:02:56.9]} 14.
Bd6 {[%clk 0:02:54]} 14... Bxd6 {[%clk 0:02:56.8]} 15. Rxd6 {[%clk 0:02:53.9]}
15... c5 {[%clk 0:02:48.2]} 16. Rad1 {[%clk 0:02:49.4]} 16... Bb7 {[%clk
0:02:47.8]} 17. Ne5 {[%clk 0:02:49.3]} 17... Rac8 {[%clk 0:02:41.1]} 18. c4
{[%clk 0:02:48.8]} 18... Rc7 {[%clk 0:02:29.7]} 19. f3 {[%clk 0:02:33]} 19... f6
{[%clk 0:02:24.2]} 20. Ng6 {[%clk 0:02:24.4]} 20... Re8 {[%clk 0:02:23.2]} 21.
h4 {[%clk 0:02:19.2]} 21... Kf7 {[%clk 0:02:01.5]} 22. h5 {[%clk 0:02:16.6]}
22... Bc6 {[%clk 0:02:01.8]} 23. Kf2 {[%clk 0:02:12.2]} 23... a5 {[%clk
0:02:01.6]} 24. R1d2 {[%clk 0:02:06]} 24... e5 {[%clk 0:02:01.8]} 25. Nh4 {[%clk
0:02:03.6]} 25... a4 {[%clk 0:01:54.1]} 26. Ke3 {[%clk 0:01:59.5]} 26... Rb8
{[%clk 0:01:53.9]} 27. Nf5 {[%clk 0:01:57.1]} 27... Rb4 {[%clk 0:01:52.7]} 28.
Rd8 {[%clk 0:01:29.8]} 28... Rxc4 {[%clk 0:01:50.6]} 29. Nd6+ {[%clk 0:01:28.8]}
1-0